Workbook

Sheet Maschine
C1: Capristo | D1: 60 L Kochanlage | E1: Ersparnis
B3: Liter | C3: 60 | D3: 60
B4: Temperatur | C4: 80 | D4: 80
A6: Wasser zum Kochen | B6: in Litern | C6: 1.5 | D6: 450
A7: Jahresmenge | B7: Eis | C7: 12000 | D7: =C7 -> 12000
B8: Wasser | C8: =C7*C6/C3 -> 300 | D8: =D7*D6/D3 -> 90000
B9: preis je Kbm | C9: 5 | D9: =C9 -> 5
B10: p.a | C10: =C8/1000*C9 -> 1.5 | D10: =D8/1000*D9 -> 450 | E10: =D10-C10 -> 448.5
A13: Strom Kochen | B13: Dauer in min | C13: 5 | D13: 60
B14: KW pro Std. | C14: 12.7 | D14: 9
B15: Strombedarf in KWh | C15: =C14*C13/60 -> 1.058333333 | D15: =D14*D13/60 -> 9
B16: € pro KW | C16: 0.33 | D16: =C16 -> 0.33
B18: Kosten Strom p.a. | C18: =C7/C3*C15*C16 -> 69.85 | D18: =$D$7/$D$3*D15*D16 -> 594 | E18: =D18-C18 -> 524.15
A21: Strom Kühlen | B21: Dauer in h | C21: 0 | D21: 1
B22: KW pro Std. | C22: 12.7 | D22: 0.5
B23: Menge | C23: =C22*C21 -> 0 | D23: =D22*D21 -> 0.5
B24: € pro KW | C24: 0.27 | D24: 0.27
B25: Kosten Strom | C25: =C35/C9*C23*C24 -> 0 | D25: =$D$7/$D$3*D23*D24 -> 27 | E25: =D25-C25 -> 27
A28: Arbeitszeit inkl. Reinigung | B28: Dauer in h | C28: 0.08333333333 | D28: =45/60 -> 0.75
B29: Lohn inkl. SV € pro Std. | C29: 11.5 | D29: =C29 -> 11.5
B30: Kosten Lohn | C30: =$D$7/$D$3*C29*C28 -> 191.6666667 | D30: =$D$7/$D$3*D29*D28 -> 1725 | E30: =D30-C30 -> 1533.333333
A31: Kosten je L | C31: =(C10+C18+C25+C30)/C7 -> 0.02191805556 | D31: =(D10+D18+D25+D30)/D7 -> 0.233
A32: Kostenvorteil | E32: =SUM(E10:E30) -> 2532.983333
A34: Kondens im Eis | B34: Wasser | C34: =C8 -> 300
B35: VK Kugel Eis | C35: 1
B36: Material Einsatz | C36: 0.16
B37: HK Kugel Eis | C37: =C36*C35 -> 0.16
B38: 40 er Portionierer | C38: =C34*40 -> 12000
B39: Ersparte HK | D39: =C38*C37 -> 1920
B40: Ersparte Kosten v.o. | D40: =C34*D31 -> 69.9 | E40: =SUM(D39:D40) -> 1989.9
A42: Kostenvorteil gesamt | E42: =E40+E32 -> 4522.883333
